[Event "FRA-ch Teams Top 16-A 2022"]
[Site "Chartres"]
[Date "2022.06.12"]
[Round "4.27"]
[White "Tiviakov, Sergei"]
[Black "Saatdjian, Thomas"]
[Result "1-0"]
[ECO "B22"]
[WhiteElo "2567"]
[BlackElo "2271"]
[Annotator "TA"]
[PlyCount "91"]
[EventDate "2022.06.09"]
[EventType "team-tourn"]
[EventCountry "FRA"]
[SourceTitle "playchess.com"]
[Source "ChessBase"]
[SourceQuality "1"]
[TimeControl "40/5400+30:1800+30"]

{[%evp 11,91,11,28,0,16,13,2,-1,2,-7,-8,-34,-50,-50,-15,-31,-34,-30,-8,-22,0,1,0,0,0,0,0,1,25,0,33,33,35,33,29,34,26,23,27,20,20,0,20,20,20,20,25,13,17,8,68,78,28,30,28,28,57,28,28,0,0,0,0,0,0,0,0,0,0,0,0,0,8,8,5073,5073,5073,5073,5073,5073,5073,5073]} 1. e4 {[%emt 0:00:05]} c5 {[%emt 0:00:04]} 2. c3 {[%emt 0:00:06]} d5 {[%emt 0:00:11]} 3. exd5 {[%emt 0:00:06]} Qxd5 {[%emt 0:00:07]} 4. d4 {[%emt 0:00:06]} Nf6 {[%emt 0:00:19]} 5. Nf3 {[%emt 0:00:09]} Bg4 {[%emt 0:00:24]} 6. dxc5 {[%emt 0:00:42]} Qxc5 {[%emt 0:01:36]} 7. Be3 {[%emt 0:00:35] B22: Sicilian: 2 c3.} Qc7 {[%emt 0:03:25]} 8. h3 {[%emt 0:01:27]} Bh5 {[%emt 0:00:51]} 9. Qa4+ $5 {[%emt 0:07:46][%mdl 4] The position is equal. An interesting side line.} Nbd7 {[%emt 0:01:40]} 10. Nbd2 {[%emt 0:00:09]} e6 {[%emt 0:11:18] [#]} 11. Nd4 $146 {[%emt 0:15:18]} ({Predecessor:} 11. O-O-O Be7 12. Bf4 Qc8 13. g4 Bg6 14. Ne5 O-O 15. Nxg6 hxg6 16. Bg2 Nb6 17. Qb5 {0-1 (25) Lyall,S (1801)-Zhang,L (1839) Auckland 2014}) 11... Be7 {[%emt 0:22:58]} 12. Qc4 {[%emt 0:18:21]} Qxc4 {[%emt 0:10:16]} 13. Nxc4 {[%emt 0:01:06]} Nd5 {[%emt 0:01:43]} 14. Be2 {[%emt 0:00:49]} Nxe3 {[%emt 0:08:36]} 15. Nxe3 {[%emt 0:00:30]} Bxe2 {[%emt 0:00:04]} 16. Kxe2 {[%emt 0:00:05]} O-O-O {[%emt 0:00:09]} 17. Rhd1 {[%emt 0:01:52]} a6 {[%emt 0:07:42]} 18. a4 {[%emt 0:00:46]} Kc7 {[%emt 0:05:25]} 19. a5 {[%emt 0:01:04]} Bc5 {[%emt 0:11:04]} (19... g5 {is more complex.} 20. Nf3 Nc5 21. Ne5 f5) 20. Ra4 {[%emt 0:07:42]} Bxd4 {[%emt 0:00:19]} 21. Raxd4 {[%emt 0:00:21]} Ne5 {[%emt 0:01:07]} 22. b4 {[%emt 0:01:18]} Nc6 {[%emt 0:03:01]} 23. Rxd8 {[%emt 0:05:06]} Rxd8 {[%emt 0:00:01]} 24. Rxd8 {[%emt 0:00:07]} Kxd8 $11 {[%emt 0:00:22][%mdl 4096] Endgame KN-KN} 25. g4 {[%emt 0:00:26]} f6 {[%emt 0:05:57]} 26. f4 {[%emt 0:10:49]} Ke7 {[%emt 0:02:29]} 27. Kd3 {[%emt 0:00:18]} g6 {[%emt 0:00:29]} 28. Nc4 {[%emt 0:04:44]} Kd7 {[%emt 0:00:55]} 29. Nd2 {[%emt 0:03:12]} f5 $1 {[%emt 0:00:01] Against Ne4} 30. gxf5 {[%emt 0:00:17]} exf5 {[%emt 0:00:44]} (30... gxf5 $11 31. Nc4 Kc7) 31. Nb3 $14 {[%emt 0:01:58]} Kd6 {[%emt 0:00:19]} ({Black should play} 31... Nd8 $16) 32. Nd4 {[%emt 0:00:26]} Ne7 {[%emt 0:01:05]} 33. c4 {[%emt 0:00:07]} Ng8 {[%emt 0:01:08]} 34. Ne2 {[%emt 0:00:36]} Ne7 {[%emt 0:00:35]} 35. c5+ {[%emt 0:06:31]} Kd5 {[%emt 0:00:06]} 36. Nc3+ {[%emt 0:00:05]} Ke6 {[%emt 0:00:48]} 37. Kc4 {[%emt 0:00:15]} h6 {[%emt 0:00:22]} 38. h4 {[%emt 0:00:54] Inhibits g5.} g5 $1 {[%emt 0:00:42]} 39. fxg5 {[%emt 0:05:32]} hxg5 {[%emt 0:00:02]} 40. hxg5 {[%emt 0:05:37] Black must now prevent b5.} f4 {[%emt 0:00:01]} 41. b5 {[%emt 0:12:04] Ne2 is the strong threat.} Ke5 {[%emt 0:07:28]} 42. g6 {[%emt 0:03:51] aiming for g7.} Nxg6 {[%emt 0:06:16][%mdl 8192] [#] This costs Black the game.} (42... f3 $11 43. Kd3 Nxg6) 43. c6 $1 $18 {[%emt 0:00:12] White is clearly winning.} ({Not} 43. bxa6 bxa6 44. c6 Kd6 $11) 43... axb5+ {[%emt 0:00:19] [#]} 44. Kc5 $1 {[%emt 0:03:35]} ({Less strong is} 44. Kxb5 bxc6+ 45. Kb6 (45. Kxc6 Ne7+ 46. Kd7 f3 $11) 45... Ne7 $14) 44... bxc6 {[%emt 0:01:59]} 45. a6 {[%emt 0:00:04] Threatening mate with a7.} f3 {[%emt 0:03:22]} 46. Nd1 {[%emt 0:00:05] Weighted Error Value: White=0.06 (flawless) /Black=0.09 (flawless)} 1-0

[Event "FRA-ch Teams Top 16-A 2022"]
[Site "Chartres"]
[Date "2022.06.12"]
[Round "4.28"]
[White "Sochacki, Wojtek"]
[Black "Medvegy, Zoltan"]
[Result "1/2-1/2"]
[ECO "A05"]
[WhiteElo "2324"]
[BlackElo "2522"]
[Annotator "TA"]
[PlyCount "246"]
[EventDate "2022.06.09"]
[EventType "team-tourn"]
[EventCountry "FRA"]
[SourceTitle "playchess.com"]
[Source "ChessBase"]
[SourceQuality "1"]
[TimeControl "40/5400+30:1800+30"]

{[%evp 65,246,0,17,10,25,24,225,93,82,64,64,48,47,47,37,0,16,16,16,23,21,22,13,16,26,0,0,0,0,0,0,0,16,16,17,16,22,25,24,2,10,13,34,17,73,0,85,58,189,160,100,0,0,0,0,0,0,0,0,0,0,0,0,0,527,527,527,12,99,115,573,573,6410,6207,6207,313,11769,10860,6493,6585,6493,0,3170,0,0,0,2179,0,0,0,0,0,0,0,0,0,0,0,0,0,0,0,0,0,0,0,0,0,0,0,0,0,0,0,1137,1136,1100,1033,1585,556,1580,1412,29952,6514,29954,29947,29951,29955,29956,29957,1155,970,876,837,797,760,29958,29963,29961,29962,12578,8423,688,8,8,8,8,8,8,0,0,0,0,0,8,-8,-8,-8,-8,-8,-8,-29978,-8,-8,-8,-8,-8,-8,-8,-8,-8,-8,-8,-8,0,-8,-8,-8,-8,-8,-8,-8,-8]} 1. Nf3 {[%emt 0:00:10]} Nf6 {[%emt 0:00:13]} 2. g3 {[%emt 0:00:06]} b5 {[%emt 0:01:07]} 3. Bg2 {[%emt 0:00:08]} Bb7 {[%emt 0:00:08]} 4. O-O {[%emt 0:00:32]} e6 {[%emt 0:00:27]} 5. d3 {[%emt 0:12:12]} Be7 {[%emt 0:01:40]} 6. e4 {[%emt 0:01:20]} d6 {[%emt 0:00:21]} 7. Nbd2 {[%emt 0:27:57]} c5 {[%emt 0:05:29]} 8. Re1 {[%emt 0:02:18]} Nbd7 {[%emt 0:07:14]} 9. b3 {[%emt 0:10:02]} O-O {[%emt 0:03:57]} 10. Bb2 {[%emt 0:01:30]} e5 {[%emt 0:19:49]} 11. c4 {[%emt 0:06:08]} bxc4 {[%emt 0:10:13]} 12. bxc4 {[%emt 0:00:06]} Nb8 {[%emt 0:02:53]} 13. Rb1 {[%emt 0:02:40]} Qc7 {[%emt 0:03:58]} 14. Nf1 {[%emt 0:01:17]} Nc6 {[%emt 0:00:23]} 15. Ne3 {[%emt 0:01:03]} Rab8 {[%emt 0:02:45]} 16. Nd5 {[%emt 0:12:53]} Nxd5 {[%emt 0:00:20]} 17. cxd5 {[%emt 0:02:09]} Nd4 {[%emt 0:02:25]} 18. Bxd4 {[%emt 0:01:02]} cxd4 {[%emt 0:04:18]} 19. Qa4 {[%emt 0:02:09]} Bc8 {[%emt 0:04:12]} 20. Rxb8 {[%emt 0:00:55]} Qxb8 {[%emt 0:02:15]} 21. h4 {[%emt 0:05:12]} Rd8 {[%emt 0:08:25]} 22. Nd2 {[%emt 0:02:17]} Bd7 {[%emt 0:00:52]} 23. Qa3 {[%emt 0:00:50]} Rc8 {[%emt 0:06:42]} 24. Rb1 {[%emt 0:00:08]} Qc7 {[%emt 0:02:21]} 25. Nc4 {[%emt 0:00:05]} Bf8 {[%emt 0:00:21]} 26. Qb3 {[%emt 0:01:49]} g6 {[%emt 0:04:34]} 27. Kh2 {[%emt 0:00:12]} h5 {[%emt 0:05:37]} 28. a4 {[%emt 0:05:03]} Rd8 {[%emt 0:00:33]} 29. f3 {[%emt 0:02:07]} Bc8 {[%emt 0:00:34]} 30. Qb5 {[%emt 0:00:27]} Bd7 {[%emt 0:00:22]} 31. Qb4 {[%emt 0:00:31]} Bc8 {[%emt 0:00:18]} 32. Qb8 {[%emt 0:00:20]} Qe7 {[%emt 0:01:05]} 33. Qb2 {[%emt 0:00:42]} Ba6 {[%emt 0:00:31]} 34. Na5 $1 {[%emt 0:00:05]} Qf6 {[%emt 0:00:33]} 35. Nc6 {[%emt 0:00:12]} Rd7 $2 {[%emt 0:00:33]} (35... Re8 $11 {and Black has nothing to worry.}) 36. Qd2 {[%emt 0:00:32]} (36. Qc2 $18) 36... Kh7 $16 {[%emt 0:00:26]} 37. Nb8 {[%emt 0:01:00]} Rb7 {[%emt 0:00:15]} 38. Qd1 {[%emt 0:00:45]} Rxb1 {[%emt 0:00:25]} 39. Qxb1 {[%emt 0:00:01]} Bc8 {[%emt 0:00:19]} 40. Qb5 {[%emt 0:00:53]} (40. Qc2 $5 {[%cal Rc2c8]} Qd8 41. Nc6 $14) 40... Qd8 {[%emt 0:00:55]} 41. Nc6 {[%emt 0:07:24]} Qb6 {[%emt 0:17:03]} 42. Bh3 {[%emt 0:05:28]} Ba6 {[%emt 0:01:56]} 43. Qxb6 axb6 {[%emt 0:00:01]} 44. Nb4 {[%emt 0:00:35]} Bb7 {[%emt 0:00:08]} 45. Bd7 {[%emt 0:00:13]} Bh6 {[%emt 0:00:53]} 46. Bb5 {[%emt 0:00:30]} Kg7 {[%emt 0:06:18]} 47. Nc6 {[%emt 0:01:47]} Bd2 {[%emt 0:00:56]} 48. Nb8 {[%emt 0:09:52]} Bc8 {[%emt 0:01:44]} 49. Ba6 {[%emt 0:05:21]} Bxa6 {[%emt 0:00:14]} 50. Nxa6 {[%emt 0:00:02]} Kf8 {[%emt 0:00:55]} 51. Nc7 {[%emt 0:00:28]} Ke7 {[%emt 0:00:30]} 52. Nb5 {[%emt 0:00:04]} Bb4 {[%emt 0:02:14]} 53. Kg2 {[%emt 0:01:05]} Kd7 {[%emt 0:02:55]} 54. Kf2 {[%emt 0:00:05]} f6 {[%emt 0:00:47]} (54... f5 $11) 55. Ke2 {[%emt 0:00:23]} (55. f4 $16) 55... Bc5 {[%emt 0:01:01]} (55... f5 $11 {keeps the balance.}) 56. Na7 {[%emt 0:01:18]} Bb4 {[%emt 0:00:21]} ({Black should play} 56... f5 $14) 57. Nc6 $18 {[%emt 0:00:13]} Bc3 {[%emt 0:00:38]} ({Black should try} 57... Ba5) 58. Kd1 {[%emt 0:02:10]} ({Better is} 58. f4 $16) 58... g5 $11 {[%emt 0:00:14]} 59. hxg5 {[%emt 0:02:11]} fxg5 {[%emt 0:00:01]} 60. Ke2 {[%emt 0:00:05]} g4 {[%emt 0:01:17]} 61. Kf2 {[%emt 0:00:56]} Bd2 {[%emt 0:00:14]} 62. Na7 {[%emt 0:00:06]} Bb4 {[%emt 0:00:37]} 63. Nb5 {[%emt 0:00:10]} Bc5 {[%emt 0:00:31]} 64. Kg2 {[%emt 0:01:10]} gxf3+ $2 {[%emt 0:00:39][%mdl 8192]} (64... Bb4 $11 {and Black stays safe.}) 65. Kxf3 $18 {[%emt 0:00:04]} Kc8 {[%emt 0:00:04]} 66. Na7+ $2 {[%emt 0:00:06]} (66. g4 $18 hxg4+ 67. Kxg4) 66... Kb7 $1 $11 {[%emt 0:00:03]} 67. Nc6 {[%emt 0:00:04]} Ka6 $2 {[%emt 0:00:38][%mdl 8192]} (67... Ba3 $16 {is a better chance.}) 68. Kg2 $18 {[%emt 0:00:43]} b5 {[%emt 0:01:13]} 69. axb5+ {[%emt 0:00:02]} Kxb5 {[%emt 0:00:01]} 70. Kf3 $2 {[%emt 0:00:36]} (70. Ne7 Ka5 71. Nf5) 70... Bb6 $2 {[%emt 0:00:55]} (70... Kb6 71. Kg2 Kb5) 71. Ne7 $18 {[%emt 0:02:15]} Bd8 {[%emt 0:00:18]} 72. Nf5 {[%emt 0:00:06]} Kc5 {[%emt 0:00:03]} 73. Kg2 $2 {[%emt 0:00:28]} (73. Ng7 $1 $18 {[%cal Rg7e6]} Be7 74. Nxh5) 73... Bg5 $2 {[%emt 0:01:03][%mdl 8192]} (73... Bf6 $11) 74. Kf3 $2 {[%emt 0:00:39]} (74. Ng7 $1 $18 {[%cal Rg7e6] White wants to mate with Ne6+.} Kb6 75. Nxh5) 74... Bf6 $11 {[%emt 0:00:06]} 75. Kf2 $1 {[%emt 0:00:07]} Bg5 $2 {[%emt 0:00:14][%mdl 8192]} (75... Bh8 $11) 76. Kf1 $2 {[%emt 0:01:18]} (76. Ng7 $1 $18 {[%cal Rg7e6]}) 76... Bf6 $1 $11 {[%emt 0:00:14]} 77. Ke2 {[%emt 0:00:03]} Bh8 $1 {[%emt 0:01:23]} 78. Kd2 {[%emt 0:00:54]} Bf6 {[%emt 0:00:10]} 79. Kc2 {[%emt 0:00:05]} Bh8 {[%emt 0:01:03]} 80. Kb3 {[%emt 0:00:18]} Bf6 {[%emt 0:00:01]} 81. Ka4 {[%emt 0:00:08]} Bd8 {[%emt 0:00:35]} 82. Kb3 {[%emt 0:00:06]} Bf6 {[%emt 0:00:35]} 83. Ka3 {[%emt 0:00:06]} Kb6 {[%emt 0:00:52]} 84. Kb4 {[%emt 0:00:42]} ({Don't blunder} 84. Nxd6 $2 Be7 85. Kb3 Bxd6 $19) 84... Kc7 $1 {[%emt 0:00:07]} 85. Kb5 {[%emt 0:00:04]} Bh8 {[%emt 0:00:51]} 86. Ka6 {[%emt 0:01:09]} Bf6 {[%emt 0:00:10]} 87. Kb5 {[%emt 0:01:44]} Bh8 {[%emt 0:00:05]} 88. Kc4 {[%emt 0:00:32]} Bf6 {[%emt 0:00:05]} 89. Kb3 {[%emt 0:00:01]} Bh8 $2 {[%emt 0:02:16][%mdl 8192]} (89... Kd7 $11) 90. Kc2 $18 Bf6 {[%emt 0:00:00]} 91. Kd2 {[%emt 0:00:02]} Bg5+ {[%emt 0:00:22]} 92. Ke2 {[%emt 0:00:02]} Bf6 {[%emt 0:00:30]} 93. Kf3 {[%emt 0:00:07]} Bh8 {[%emt 0:00:30]} 94. g4 {[%emt 0:00:49]} hxg4+ {[%emt 0:00:01]} 95. Kxg4 {[%emt 0:00:04]} Bf6 {[%emt 0:00:07]} 96. Kh5 {[%emt 0:00:01]} Kd7 {[%emt 0:00:39]} 97. Kg6 {[%emt 0:00:03]} Bd8 {[%emt 0:00:03]} 98. Kf7 {[%emt 0:00:06]} Ba5 {[%emt 0:00:46]} 99. Nh6 {[%emt 0:00:07]} Bd2 {[%emt 0:00:33]} 100. Ng8 {[%emt 0:00:04]} Bb4 {[%emt 0:00:38]} 101. Nf6+ {[%emt 0:00:04]} Kd8 {[%emt 0:00:23]} 102. Ke6 {[%emt 0:00:05]} Bc5 {[%emt 0:00:22]} 103. Ng8 {[%emt 0:03:07]} Kc7 {[%emt 0:00:55]} 104. Ke7 $2 {[%emt 0:00:31]} (104. Nh6 $18 Ba3 105. Nf5) 104... Kb6 $1 $11 {[%emt 0:00:34]} 105. Nf6 {[%emt 0:00:12]} Kb5 {[%emt 0:00:23]} 106. Ke6 {[%emt 0:01:00]} Ka4 {[%emt 0:01:03]} 107. Nd7 {[%emt 0:02:07]} Bb4 {[%emt 0:00:18]} 108. Nxe5 {[%emt 0:01:21]} dxe5 {[%emt 0:00:11]} 109. Kxe5 {[%emt 0:00:09]} Kb5 {[%emt 0:00:59]} 110. Ke6 {[%emt 0:00:34]} Kc5 {[%emt 0:00:41]} 111. e5 {[%emt 0:01:06]} Be1 {[%emt 0:00:30]} (111... Bd2 $5) 112. d6 {[%emt 0:00:23]} Kc6 {[%emt 0:00:24]} 113. Ke7 $2 {[%emt 0:00:37][%mdl 8192] [#]} (113. Kf7 $11 Bh4 114. Ke6) 113... Bh4+ $2 {[%emt 0:00:24]} (113... Kd5 $1 {mates} 114. Kf6 Bg3 115. e6 Bxd6 116. Kf5 Kc5 117. Kg5 Kb4 118. Kh5 Kc3 119. Kg4 Kxd3 120. Kf3 Be7 121. Kf4 Ke2 122. Kf5 d3 123. Kg6 d2 124. Kf7 Ba3 125. e7 {[#]} Bxe7 $1 {[%mdl 512]} 126. Kxe7 d1=Q 127. Kf7 Ke3 128. Kg7 Ke4 129. Kf6 Qd6+ 130. Kg5 Qe7+ 131. Kh5 Qg7 132. Kh4 Kf4 133. Kh5 Qh7#) 114. Ke6 $1 $11 {[%emt 0:00:03]} Bg3 {[%emt 0:00:27]} 115. Kf5 {[%emt 0:00:04]} Kd5 {[%emt 0:00:37]} 116. d7 {[%emt 0:00:05]} Bh4 {[%emt 0:00:03]} 117. e6 {[%emt 0:00:04]} Be7 {[%emt 0:00:36]} (117... Bd8 $5) 118. Kf4 {[%emt 0:00:04]} Bd8 {[%emt 0:00:54]} (118... Bf6 $5 119. Kf5 Be7 $11) 119. Kf5 {[%emt 0:00:04]} Be7 {[%emt 0:00:11]} 120. Kf4 {[%emt 0:00:02]} Kxe6 {[%emt 0:00:08]} 121. Ke4 {[%emt 0:00:02]} Bf6 {[%emt 0:00:09]} 122. d8=B {[%emt 0:00:12]} Bxd8 {[%emt 0:00:04]} 123. Kxd4 {[%emt 0:00:05]} Bf6+ {[%emt 0:00:03]} 1/2-1/2

[Event "FRA-ch Teams Top 16-A 2022"]
[Site "Chartres"]
[Date "2022.06.12"]
[Round "4.29"]
[White "Maurizzi, Marc`Andria"]
[Black "Cantin, Loic"]
[Result "1-0"]
[ECO "C48"]
[WhiteElo "2490"]
[BlackElo "2199"]
[Annotator "TA"]
[PlyCount "117"]
[EventDate "2022.06.09"]
[EventType "team-tourn"]
[EventCountry "FRA"]
[SourceTitle "playchess.com"]
[Source "ChessBase"]
[SourceQuality "1"]
[TimeControl "40/5400+30:1800+30"]

{[%evp 9,117,7,12,0,0,0,0,0,0,0,0,0,0,0,0,0,0,0,0,0,7,-14,0,0,0,0,0,0,0,0,10,7,12,0,0,0,0,0,0,0,0,0,18,0,0,0,0,0,0,0,0,0,72,72,76,82,89,84,62,61,73,20,65,19,154,129,116,63,249,252,253,251,242,226,235,227,326,339,341,341,324,298,279,221,416,371,409,285,275,225,217,243,386,222,404,206,468,325,1014,1005,2564,2162,1588,724,29968,29969,6293,5530,5530,403]} 1. e4 {[%emt 0:00:02]} e5 {[%emt 0:00:11]} 2. Nf3 {[%emt 0:00:04]} Nc6 {[%emt 0:00:12]} 3. Bb5 {[%emt 0:01:58]} Nf6 {[%emt 0:00:20]} 4. Nc3 {[%emt 0:04:15]} Bd6 {[%emt 0:05:05]} 5. d3 {[%emt 0:06:26]} O-O {[%emt 0:04:08]} 6. a3 {[%emt 0:08:39] C48: Four Knights: 4 Bb5, replies other than 4...Bb4.} Nd4 {[%emt 0:02:59]} 7. Bc4 {[%emt 0:01:37]} c6 {[%emt 0:01:29]} 8. Nxd4 {[%emt 0:11:10] The position is equal.} exd4 {[%emt 0:00:05]} 9. Ne2 {[%emt 0:00:01]} Be5 {[%emt 0:02:24] [#]} 10. O-O $146 {[%emt 0:11:20]} ({Predecessor:} 10. Bg5 h6 11. Bh4 Qc7 12. Bxf6 Bxf6 13. O-O d6 14. Ng3 Be6 15. Bb3 c5 16. f4 {1-0 (36) Cornette,D (2419)-Yildiz Kadioglu,B (2326) Kocaeli 2017}) 10... d5 {[%emt 0:02:57]} 11. exd5 {[%emt 0:00:01]} Nxd5 {[%emt 0:02:22]} 12. Ng3 {[%emt 0:02:15]} Bxg3 {[%emt 0:24:01]} 13. hxg3 {[%emt 0:00:56]} Be6 {[%emt 0:01:04]} 14. Qf3 {[%emt 0:05:30]} Qd7 {[%emt 0:01:47]} 15. Qe4 {[%emt 0:03:47]} Nc7 {[%emt 0:01:36]} 16. Bxe6 {[%emt 0:00:21]} Nxe6 {[%emt 0:00:05]} 17. Bd2 {[%emt 0:00:53]} Rfe8 {[%emt 0:07:50]} 18. Rfe1 {[%emt 0:01:14]} Nc7 {[%emt 0:05:03]} 19. Qf4 {[%emt 0:01:09]} Re6 {[%emt 0:01:58]} 20. Rxe6 {[%emt 0:00:46]} Nxe6 {[%emt 0:00:07]} 21. Qg4 {[%emt 0:00:39]} Re8 {[%emt 0:08:00]} 22. Re1 {[%emt 0:01:46]} Nf8 {[%emt 0:02:03]} 23. Qf4 {[%emt 0:01:26]} Rxe1+ {[%emt 0:00:14]} 24. Bxe1 $11 {[%emt 0:00:01][%mdl 4096] Endgame KQB-KQN} Qd8 {[%emt 0:01:44]} 25. a4 {[%emt 0:02:47]} g6 {[%emt 0:02:34]} 26. Bd2 {[%emt 0:34:27]} h5 {[%emt 0:06:27]} 27. Bb4 {[%emt 0:00:00]} Ne6 {[%emt 0:01:19]} 28. Qe5 {[%emt 0:00:00]} b6 {[%emt 0:02:28]} 29. Bd6 {[%emt 0:00:00]} Qd7 {[%emt 0:01:40][%cal Of7f6]} 30. Bb8 {[%emt 0:00:00]} a6 {[%emt 0:00:46] [#]} (30... c5 $11) 31. Qf6 $1 $16 {[%emt 0:00:00]} c5 {[%emt 0:06:05]} 32. Be5 {[%emt 0:00:00][%csl Ge5][%cal Rf6h8]} Kf8 {[%emt 0:00:06]} 33. b3 {[%emt 0:00:00]} Ke8 {[%emt 0:00:47]} 34. Qh8+ {[%emt 0:00:00]} Ke7 {[%emt 0:01:58]} 35. Qa8 {[%emt 0:00:00]} (35. f4 $16) 35... a5 $1 $11 {[%emt 0:00:58]} (35... f6 36. Bb8 $16) 36. Qa6 $1 {[%emt 0:00:00] White is much more active.} (36. Qh8 Qe8 $11) 36... Qd8 {[%emt 0:02:07]} (36... f6 $2 37. Bb8 $18) (36... Qc6 $1 $11) 37. Qb7+ $16 {[%emt 0:00:00]} Kf8 {[%emt 0:00:51]} 38. Bb8 {[%emt 0:00:00]} (38. f4 $16) 38... h4 $2 {[%emt 0:02:02] Loses the game.} (38... Kg8 $14) 39. gxh4 $18 {[%emt 0:00:00]} Qxh4 {[%emt 0:00:31]} 40. Bd6+ {[%emt 0:00:00]} ({Don't take} 40. Qxb6 $6 Qh5 $16) 40... Kg8 {[%emt 0:01:31]} 41. Qc8+ {[%emt 0:24:11]} Kh7 {[%emt 0:07:38] [#]} 42. Be5 $1 {[%emt 0:00:00][%csl Ge5][%cal Rc8h8]} ({Much less strong is} 42. Qb7 $6 Qf6) 42... f6 {[%emt 0:03:16]} (42... Qd8 $142 43. Qxd8 Nxd8) 43. Qxe6 {[%emt 0:00:00]} fxe5 {[%emt 0:00:06]} 44. Qxe5 {[%emt 0:00:00] Hoping for Qh2. KQ-KQ} (44. Qxb6 Qg5 $16) 44... Qd8 {[%emt 0:00:57]} 45. Kf1 {[%emt 0:00:00]} Qd7 {[%emt 0:00:56]} 46. f3 {[%emt 0:00:00]} Qd8 $2 {[%emt 0:02:37]} (46... c4 47. bxc4 (47. dxc4 d3 $16) 47... Qxa4) 47. Ke2 {[%emt 0:00:00]} Kh6 {[%emt 0:01:20]} 48. Qf4+ {[%emt 0:00:00]} Kg7 {[%emt 0:00:13]} 49. Kd1 {[%emt 0:00:00]} Qe7 {[%emt 0:00:47]} 50. Qe4 {[%emt 0:00:00]} Qg5 {[%emt 0:04:46]} (50... Qc7 $142 51. f4 Qd7) 51. f4 {[%emt 0:00:00]} (51. Qb7+ $142 Kh6 52. Qxb6) 51... Qh4 $2 {[%emt 0:01:06]} (51... Qg4+ 52. Kc1 Qd7 53. Qe5+ Kf7) 52. Kc1 {[%emt 0:00:00]} (52. Qb7+ $142 Kh6 53. Qxb6) 52... Qd8 $2 {[%emt 0:00:51]} (52... Qf6 {might work better.} 53. Kd1 Qd8 54. Qe5+ Kf7) 53. g4 {[%emt 0:00:00][%cal Bg2g4,Bg4g5][%mdl 32]} Qh4 $2 {[%emt 0:02:08]} (53... Qd7 54. g5 Kf7) 54. g5 {[%emt 0:00:00]} Qf2 {[%emt 0:00:56]} 55. Qe7+ {[%emt 0:00:00]} Kg8 {[%emt 0:00:33]} 56. Qe6+ {[%emt 0:00:00]} Kg7 {[%emt 0:00:06]} 57. Qf6+ {[%emt 0:00:00]} Kh7 {[%emt 0:00:21]} 58. Qf7+ {[%emt 0:00:00]} Kh8 {[%emt 0:00:03]} 59. Qf8+ {[%emt 0:00:00] Weighted Error Value: White=0.19 (very precise) /Black=0.52} 1-0

[Event "FRA-ch Teams Top 16-A 2022"]
[Site "Chartres"]
[Date "2022.06.12"]
[Round "4.30"]
[White "Caille, Hugo"]
[Black "Daulyte-Cornette, Deimante"]
[Result "0-1"]
[ECO "A49"]
[WhiteElo "2177"]
[BlackElo "2372"]
[Annotator "TA"]
[PlyCount "46"]
[EventDate "2022.06.09"]
[EventType "team-tourn"]
[EventCountry "FRA"]
[SourceTitle "playchess.com"]
[Source "ChessBase"]
[SourceQuality "1"]
[TimeControl "40/5400+30:1800+30"]

{[%evp 12,46,27,31,27,31,22,28,28,27,24,24,29,17,40,37,41,43,59,19,14,1,42,42,83,81,100,84,87,-347,-360,-351,-371,-364,-360,-400,-382]} 1. Nf3 {[%emt 0:00:09]} Nf6 {[%emt 0:00:32]} 2. g3 {[%emt 0:00:56]} g6 {[%emt 0:02:30]} 3. Bg2 {[%emt 0:00:43]} Bg7 {[%emt 0:00:05]} 4. O-O {[%emt 0:00:17]} O-O {[%emt 0:00:06]} 5. d4 {[%emt 0:00:22]} d6 {[%emt 0:00:17]} 6. Nc3 {[%emt 0:00:36]} d5 {[%emt 0:01:40]} 7. Re1 {[%emt 0:00:29]} c5 {[%emt 0:11:54] A49: 1 d4 Nf6 2 Nf3 g6 3 g3: Anti-King's Indian systems.} 8. dxc5 {[%emt 0:00:35]} Na6 {[%emt 0:00:20] [#]} 9. Nd4 $146 {[%emt 0:00:16]} ({Predecessor:} 9. e4 dxe4 10. Qxd8 Rxd8 11. Ng5 Nb4 12. Bf4 Nxc2 13. Rad1 Bf5 14. Rxd8+ Rxd8 15. Rc1 {0-1 (42) Becker,M-Schmidt,J Bochum 1989}) 9... Nxc5 {[%emt 0:06:45] White has an edge.} 10. Nb3 $1 {[%emt 0:00:32]} Nxb3 {[%emt 0:05:10]} 11. axb3 {[%emt 0:00:07][%cal Rc3d5]} d4 {[%emt 0:06:28]} 12. Na4 {[%emt 0:01:10]} e5 {[%emt 0:03:41]} 13. c3 {[%emt 0:08:53][%cal Bc2c3,Bc3d4,Bd4e5][%mdl 32]} Re8 {[%emt 0:15:45]} 14. b4 {[%emt 0:04:53]} a5 {[%emt 0:11:25]} 15. bxa5 {[%emt 0:04:22]} (15. Nc5 $5 {[%cal Rc5b7]}) 15... Rxa5 {[%emt 0:01:18]} 16. b4 {[%emt 0:06:33]} Ra7 {[%emt 0:08:14][%cal Ba5a7,Ba7a4,Ba4b4][%mdl 32] [#] Threatens to win with ...b5.} (16... Ra6 $5 {[%cal Rb7b5]} 17. Bb2 Rd6 $11) 17. Bb2 {[%emt 0:02:00][%cal Rc3d4]} Qe7 {[%emt 0:15:55]} 18. cxd4 {[%emt 0:06:55]} Qxb4 {[%emt 0:00:16][%cal Oa7a4]} 19. dxe5 {[%emt 0:01:17]} Ng4 {[%emt 0:00:14]} 20. Qd4 $2 {[%emt 0:03:01][%mdl 8192] [#] This move loses the game for White.} (20. Bc3 $16 Qe7 21. Nb6 Rxa1 22. Qxa1) 20... Rxa4 $19 {[%emt 0:00:25][%mdl 512]} 21. Qxb4 {[%emt 0:09:50] Black is winning.} Rxb4 {[%emt 0:00:01]} 22. Ba3 {[%emt 0:00:08]} Ra4 {[%emt 0:00:23]} ({Less strong is} 22... Bxe5 23. Bxb4 Bxa1 24. Rxa1 $16) 23. f4 {[%emt 0:00:05]} Ne3 {[%emt 0:00:27] Weighted Error Value: White=0.42/Black=0.10 (very precise)} 0-1